Cogmind - Beta 13 @@@ ROGUE MODE // 2024.04.04 @ 16:33:16 Player: ktur Result: Destroyed by FR-NJR(R) with Subdweller Machine Gun Performance ------------- Evolutions (0) 0 Regions Visited (2) 400 Robots Destroyed (19) 95 Value Destroyed (502) 502 Prototype IDs (2) 40 Alien Tech Used (0) 0 Bonus (0) 0 TOTAL SCORE: 1037 Bonus ------- None Cogmind --------- Core Integrity 0/250 Matter 238/300 Energy 125/125 System Corruption 0% Temperature Cool (0) Movement Treading (240) Ox1 Location -10/Subcaves Parts ------- > --- POWER (1) -------- Light Ion Engine > --- PROPULSION (2) --- Light Treads > --- UTILITY (2) ------ Medium Storage Unit Seismic Detector > --- WEAPON (2) ------- Subdweller Beam Cannon Subdweller Machine Gun > --- INVENTORY (10) --- Ion Engine Light Ion Engine Huge Storage Unit Light Armor Plating Light Armor Plating Assault Rifle Grenade Launcher Makeshift Hammer Piercing Trap Peak State ------------ > --- POWER ------------ Ion Engine > --- PROPULSION ------- Light Treads Light Treads > --- UTILITY ---------- Medium Storage Unit Seismic Detector > --- WEAPON ----------- Subdweller Beam Cannon Makeshift Hammer > --- INVENTORY -------- Light Ion Engine Light Treads Light Treads Huge Storage Unit Light Armor Plating Light Armor Plating Assault Rifle Subdweller Machine Gun Grenade Launcher Piercing Trap [Rating: 12] Favorites ----------- Power Ion Engine Engine Ion Engine Propulsion Light Treads Treads Light Treads Utility Seismic Detector Device Seismic Detector Storage Huge Storage Unit Protection Light Armor Plating Weapon Assault Rifle Energy Cannon Subdweller Beam Cannon Ballistic Gun Assault Rifle Ballistic Cannon Light Cannon Special Weapon Mining Laser Impact Weapon Makeshift Hammer Build | -11 -10 -10 ------- Run | Yrd Mat Sub Slots Evolved . | . . . Power . | . . . Propulsion . | . . . Utility . | . . . Weapon . | . . . Parts Attached 34 | 7 6 21 Power 4 | 1 1 2 Engine 4 | 1 1 2 Core . | . . . Reactor . | . . . Propulsion 5 | 2 . 3 Treads 5 | 2 . 3 Leg . | . . . Wheel . | . . . Hover . | . . . Flight . | . . . Utility 8 | 2 1 5 Device 3 | 1 . 2 Storage 3 | 1 1 1 Processor . | . . . Hackware . | . . . Protection 2 | . . 2 Artifact . | . . . Weapon 17 | 2 4 11 Energy Gun . | . . . Energy Cannon 1 | . . 1 Ballistic Gun 10 | 2 2 6 Ballistic Cannon 2 | . 1 1 Launcher . | . . . Special Weapon 3 | . 1 2 Impact Weapon 1 | . . 1 Slashing Weapon . | . . . Piercing Weapon . | . . . Special Melee Weapon . | . . . Unidentified Prototypes . | . . . Parts Lost 3 | . . 3 Power . | . . . Propulsion 3 | . . 3 Utility . | . . . Weapon . | . . . Highest Loss Streak 1 | . . 1 To Critical Strikes 1 | . . 1 Average Slot Usage (%) 99 | . 100 99 Engine 14 | . 14 14 Treads 27 | . 28 27 Device 13 | . 14 13 Storage 14 | . 14 14 Energy Cannon 3 | . . 10 Ballistic Gun 18 | . 24 7 Ballistic Cannon 3 | . 3 2 Special Weapon 1 | . . 2 Impact Weapon 1 | . . 4 Naked Turns . | . . . Heaviest Build 91 | 15 91 90 Greatest Support 40 | 40 40 40 Greatest Overweight (x) 2 | . 2 2 Average Overweight (x) . | . 1 . Largest Inventory Capacity 25 | 8 25 25 Average Capacity 17 | 7 21 10 Most Carried 23 | 5 23 22 Average Carried 14 | 3 17 9 Final Capacity 25 | 8 25 10 Final Carried 23 | 5 23 9 Class Distribution -------------------- 77% | Mutant 22% | Scavenger-Mutant Dominant Class ---------------- Mutant | -10/Materials Scavenger-Mutant | -10/Subcaves Resources | -11 -10 -10 ----------- Run | Yrd Mat Sub Matter Collected 833 | 287 303 243 Remotely . | . . . Salvage Created 647 | 89 327 231 Parts 42 | 7 21 14 Haulers Intercepted 2 | . 2 . Recyclers Shooed 1 | . 1 . Parts Field Recycled . | . . . Retrieved Matter . | . . . Parts Self-Destructed 11 | . . 11 Prevented . | . . . Kills | -11 -10 -10 ------- Run | Yrd Mat Sub Combat Hostiles Destroyed 13 | . 8 5 Guns 9 | . 6 3 Cannons 3 | . 2 1 Classes Destroyed 9 | 2 4 3 Tunneler 2 | 2 . . Hauler 2 | . 2 . Recycler 1 | 1 . . Operator 1 | . 1 . Swarmer 3 | . 3 . Grunt 7 | . 5 2 Sentry 1 | . . 1 Artisan 1 | . . 1 Subdweller 2 | . . 2 Best Kill Streak 4 | 3 4 2 Combat Bots Only 4 | . 4 2 Max Kills in Single Turn 1 | 1 1 1 Gunslinging . | . . . Exploded . | . . . Melee . | . . . Uniques/NPCs Destroyed . | . . . Combat | -11 -10 -10 -------- Run | Yrd Mat Sub Hostile Shots Fired 94 | . 50 44 Missed 33 | . 16 17 Damage Taken 1108 | . 386 722 Core 272 | . 40 232 Absorbed by Shields . | . . . Regen/Repaired (Parts) 39 | . 39 . Core Remaining (%) 100 | 100 . . Volleys Fired 112 | 9 62 41 Largest 2 | 2 2 2 Hottest 110 | 40 100 110 Shots Fired 155 | 18 85 52 Gun 119 | 18 64 37 Cannon 21 | . 15 6 Launcher . | . . . Special 15 | . 6 9 Kinetic 135 | 18 79 38 Thermal 20 | . 6 14 Explosive . | . . . Electromagnetic . | . . . Robot Hit Streak 21 | 3 21 7 Robot Miss Streak 3 | 2 3 2 Penetration Max . | . . . Secondary Targets 1 | . 1 . Max Gunslinging Chain 1 | . 1 . Shots Hit Robots 99 | 11 54 34 Core Hits 34 | 3 21 10 Critical Kills . | . . . Critical Parts Destroyed . | . . . Critical Strikes 1 | . . 1 Smash 1 | . . 1 Melee Attacks 7 | . . 7 Impact 7 | . . 7 Slashing . | . . . Piercing . | . . . Sneak Attacks . | . . . Combat Hostiles . | . . . Follow-up Attacks . | . . . Damage Inflicted 1649 | 147 826 676 Guns 1212 | 147 625 440 Cannons 267 | . 137 130 Explosions . | . . . Melee 106 | . . 106 Ramming 64 | . 64 . Kinetic 1369 | 147 762 460 Thermal 110 | . . 110 Explosive . | . . . Electromagnetic . | . . . Impact 106 | . . 106 Slashing . | . . . Piercing . | . . . Highest Corruption . | . . . Average Corruption . | . . . Corruption Purged . | . . . Corruption Blocked . | . . . Overload Shots . | . . . Overflow Damage 8 | . . 8 Projectiles . | . . . Explosions . | . . . Melee 8 | . . 8 Knockbacks 2 | . 2 . Impact . | . . . Kinetic 2 | . 2 . Secondary . | . . . Self-Inflicted Damage . | . . . Shots . | . . . Rammed 11 | . 11 . Targets Rammed 11 | . 11 . Kicked . | . . . Crushed . | . . . Highest Temperature 120 | . 120 . Average Temperature 39 | . 39 . Received Heat Transfer 186 | . 150 36 Siege Activations . | . . . Robots Corrupted . | . . . Combat Hostiles . | . . . Parts Fried 1 | . . 1 Impact Corruptions 1 | . . 1 Robots Melted . | . . . Combat Hostiles . | . . . Parts Melted . | . . . Heat Transferred 148 | . . 148 Parts Sabotaged . | . . . Parts Stolen . | . . . Parts Stripped . | . . . Power Chain Reactions . | . . . Alert | -11 -10 -10 ------- Run | Yrd Mat Sub Peak Influence 192 | 15 192 . Initial 9 | . 9 . Average 51 | 5 54 . Maximum Alert Level . | . . . Low Security (%) 100 | 100 100 . Level 1 . | . . . Level 2 . | . . . Level 3 . | . . . Level 4 . | . . . Level 5 . | . . . High Security . | . . . Max Security . | . . . Squads Dispatched 1 | . 1 . Investigation . | . . . Extermination . | . . . Reinforcement 1 | . 1 . Assault . | . . . Garrison . | . . . Intercept . | . . . Searches Triggered . | . . . Construction Impeded . | . . . Haulers Reinforced . | . . . Active Scanning Responses . | . . . Cargo Convoy Interrupts . | . . . Stealth | -11 -10 -10 --------- Run | Yrd Mat Sub Distress Signals 3 | . 3 . Communications Jammed . | . . . Distress Signals . | . . . Times Spotted 34 | . 24 10 Peak Tracking Total 5 | . 5 2 Tactical Retreats 2 | . 1 1 Traps | -11 -10 -10 ------- Run | Yrd Mat Sub Traps Triggered 5 | . . 5 Indirectly . | . . . Trap Hack Attempts . | . . . Triggered . | . . . Disarmed . | . . . Reprogrammed . | . . . Reused . | . . . Traps Extracted . | . . . Installed . | . . . Triggered 1 | . . 1 Most Traps Carried 1 | . . 1 Machines | -11 -10 -10 ---------- Run | Yrd Mat Sub Machines Disabled 3 | . 3 . Max in Single Turn 1 | . 1 . Machines Repaired . | . . . Machines Dismantled . | . . . Machines Sabotaged . | . . . Overloaded Fab Kills . | . . . Hacking | -11 -10 -10 --------- Run | Yrd Mat Sub Machines Accessed 7 | . 7 . Terminals 6 | . 6 . Fabricators . | . . . Repair Stations 1 | . 1 . Recycling Units . | . . . Scanalyzers . | . . . Garrison Access . | . . . Total Hacks 15 | . 15 . Successful 6 | . 6 . Failed 8 | . 8 . Catastrophic 2 | . 2 . Database Lockouts 1 | . 1 . Manual 8 | . 8 . Terminals 13 | . 13 . Fabricators . | . . . Repair Stations 2 | . 2 . Recycling Units . | . . . Scanalyzers . | . . . Garrison Access . | . . . Terminal Hacks 3 | . 3 . Robot Analysis 1 | . 1 . Prototype ID Bank 1 | . 1 . Locate Traps 1 | . 1 . Fabricator Hacks . | . . . Repair Station Hacks 2 | . 2 . Scan Component 1 | . 1 . Repair 1 | . 1 . Recycling Unit Hacks . | . . . Scanalyzer . | . . . Garrison Access Hacks . | . . . Unauthorized Hacks 1 | . 1 . Terminals 1 | . 1 . Operators 1 | . 1 . Fabricators . | . . . Repair Stations . | . . . Recycling Units . | . . . Scanalyzers . | . . . Garrison Access . | . . . Data Cores Recovered . | . . . Used . | . . . Hacking Detections 4 | . 4 . Full Trace Events . | . . . Feedback Events . | . . . Feedback Blocked . | . . . Robot Schematics Acquired . | . . . Robots Built . | . . . Authchips . | . . . Time . | . . . Total Robot Build Rating . | . . . Part Schematics Acquired . | . . . Parts Built . | . . . Authchips . | . . . Time . | . . . Total Part Build Rating . | . . . Parts Repaired 1 | . 1 . Time 26 | . 26 . Parts Recycled . | . . . Recycled Matter . | . . . Retrieved Matter . | . . . Retrieved Components . | . . . Parts Scanalyzed . | . . . Part Schematics Acquired . | . . . Parts Damaged . | . . . Bothacking | -11 -10 -10 ------------ Run | Yrd Mat Sub Used RIF Installer . | . . . Robots Hacked . | . . . Non-combat . | . . . Combat . | . . . Robot Hacks Applied . | . . . Relay Couplers Released . | . . . Fabnet Peak Effective % . | . . . Robots Rewired . | . . . Allies Hacked . | . . . Hacks Repelled . | . . . Allies | -11 -10 -10 -------- Run | Yrd Mat Sub Total Allies . | . . . Largest Group . | . . . Highest-Rated Group . | . . . Highest-Rated Ally . | . . . Total Orders . | . . . Ally Attacks . | . . . Total Damage . | . . . Kills . | . . . Allies Corrupted . | . . . Allies Melted . | . . . Intel | -11 -10 -10 ------- Run | Yrd Mat Sub Robot Analysis Total 1 | . 1 . Derelict Logs Recovered . | . . . Drone Launches . | . . . Drone Recoveries . | . . . Exploration | -11 -10 -10 ------------- Run | Yrd Mat Sub Turns Passed 3022 | 155 1974 893 Spaces Moved 1055 | 74 548 433 Core 5 | 5 . . Treads 1050 | 69 548 433 Legs . | . . . Wheels . | . . . Hover . | . . . Flight . | . . . Fastest Speed 50 | 50 160 160 Average Speed 211 | 152 257 163 Slowest Speed 320 | 160 320 320 Overloaded Moves . | . . . Propulsion Burnouts . | . . . Robots Hopped . | . . . Cave-ins Triggered . | . . . Exploration Rate (%) 39 | 6 82 29 Regions Visited 2 Branch Regions 1 Pre-discovered Areas . | . . . Known Exits Taken . | . . . Unknown Exits Taken 2 | 1 1 . Scrap Searched 1 | . . 1 Spaces Dug 3 | . 1 2 Terrain Destroyed 11 | . 6 5 Melee 1 | . . 1 Projectile 10 | . 6 4 AOE . | . . . Terrain Rammed . | . . . Walls Destroyed . | . . . Machines Disabled . | . . . Actions | -11 -10 -10 --------- Run | Yrd Mat Sub Total 1620 | 95 990 535 Wait 355 | . 347 8 Move 1053 | 73 547 433 Hop . | . . . Pick Up 28 | 6 17 5 Fast Attach 8 | 6 . 2 Attach 7 | 1 . 6 Detach . | . . . Swap 19 | . 6 13 Drop 20 | . . 20 Fire 112 | 9 62 41 Melee 7 | . . 7 Ram . | . . . Kick . | . . . Crush 11 | . 11 . Escape Stasis . | . . . Rewire . | . . . Trap . | . . . Miscellaneous . | . . . Route ------- -11/Scrapyard -10/Materials (discovered 5 exits: [*Mat x3] / [*Min] / [*Sub]) -10/Subcaves History --------- Turn | Location | Event 3 | -11/Scrapyard | Discovered new exit (range 16) 156 | -11/Scrapyard | Entered Materials 300 | -10/Materials | Build established: Mutant 330 | -10/Materials | Discovered new exit (range 16) 694 | -10/Materials | Repaired Lgt. Treads 937 | -10/Materials | Central database locked down 949 | -10/Materials | Discovered new exit (range 9) 1449 | -10/Materials | Discovered new exit (range 15) 1801 | -10/Materials | Discovered new exit (range 9) 2123 | -10/Materials | Discovered new exit (range 3) 2130 | -10/Materials | Entered Subcaves 2338 | -10/Subcaves | Shifting Twisted Machinery released Sub. Beam Cannon 2341 | -10/Subcaves | Shifting Twisted Machinery released Piercing Trap 2628 | -10/Subcaves | A swath of the cavern ceiling suddenly collapsed 2650 | -10/Subcaves | Build established: Scavenger-Mutant 2681 | -10/Subcaves | Ambushed by Subdweller buried in earth 2906 | -10/Subcaves | Core integrity fell below 50% 2963 | -10/Subcaves | Ambushed by angry Subdweller bent on revenge 3004 | -10/Subcaves | Core integrity fell below 20% 3023 | -10/Subcaves | Destroyed by FR-NJR(R) with Subdweller Machine Gun Last Messages --------------- 02914_ Spikes shoot up from the floor. 02914_ Critical hit (Impale). 02914_ Lgt. Treads destroyed. 02914_ Critical hit (Impale). 02921_ Triggered Piercing Trap. 02921_ Spikes shoot up from the floor. 02921_ Critical hit (Impale). 02947_ AH-V0Y(u) tweaks Twisted Machinery. 02958_ AH-V0Y(u) cries out in pain. 02958_ AH-V0Y(u) destroyed. 02963_ AT-HWI(R) angrily emerges from the Twisted Machinery. 02963_ AT-HWI(R): "ECOKILL!" 02968_ Subatomizers dissect the Wheel. 02974_ Sub. Beam Cannon shoots sparks and powers down. 02974_ Lgt. Treads destroyed. 02981_ Subatomizers dissect the Wheel. 02983_ AT-HWI(R) destroyed. 02993_ Subatomizers dissect the Wheel. 02994_ Acquired 36 matter. 03005_ Subatomizers dissect the Wheel. Map ----- +----------------------------------------------------+ | ##???# ""#?###" ##??????????## | | #???#] " ###"""" #????####?### ## | | ##?## "" ##""" ### #?#### ### #### | | ### " """ ##?# ### ##??? | | ## "" "= "##?## ###???? | | #### #### "" ##?# ## ###????#? | | #??# ##?# "### #?#" ####### ######### | | ???######??## " ### #?#"" ##?????## ####"" # | | ????????????# ### #?##" #??????## #"#"""" | | ????????????# ##" #########??????# # "#"""# | | ???????????? ##""" ##??????????####"##"""" | | ???????????#% ## """ #?????????????#""##"## | | ???????????# ## ### #?????????????### # "# | | ???????????# ?# ##?# #????????????"? #""# | | ??????????? # #???# #?????????? ## ###" | | ??????????? # ????# ## #??????????# #""## | | ??????????? ????####?###??####???? # """ | | ???????????? ## ?????????????## ##??? ### " | | ????????????# ?# ??????????###?? ##??? #?### | | ????????????????#???????##### #??# ##?? ##??## | | ???????????????????????## #### #?? ##### | | ????????????????? ??#### ## ##? # | | ????????????????? # # ##" #?# # | | ????????????????? """ #??# # | | ??????????????????? " #?## | | ????????????????????????#@ #?# | | ????????????????# # ####RR #?# ## | | ????????????????## =% ## ### #? | | ????????????????# " ## ##?## | | ?????????????# ## #" * & ### ### | | ???????????????????#### " !"## ### ## | | ?????????????????????# """###### #?##### | | ?????????????????????# " ##????######?????### ### | | ?????????????????????#"""???????????????????###?# | | ?????????????????????# " ???????????????????????# | | ?????????????????????##"#???????????????????????# | | ????????????????????????????????????????????????## | | ?????????????????????????????????????????????????? | | ?????????????????????????????????????????????????? | | ?????????????????????????????????????????????????? | | ?????????????????????????????????????????????????? | | ?????????????????????????????????????????????????? | | ?????????????????????????????????????????????????? | | ?????????????????????????????????????????????????? | | ?????????????????????????????????????????????????? | | ?????????????????????????????????????????????????? | | ?????????????????????????????????????????????????? | | ?????????????????????????????????????????????????? | | ?????????????????????????????????????????????????? | | ?????????????????????????????????????????????????? | +----------------------------------------------------+ Best States ------------- Heat Dissipation 25 Energy Generation 10 Energy Capacity 250 Matter Stores 300 Matter Capacity 300 Sight Range 16 Terrain Scan Density 10 Armor Coverage 150 Evasion (%) 40 Recoil Reduction 2 Item Schematics ----------------- None Robot Schematics ------------------ None Fabricated ------------ Nothing Alien Tech Used ----------------- None Achievements -------------- None Challenges ------------ None Game ------ Seed MeleeWeldingBroadsword Manual? 0 Play Time 00:09:35 Cumulative 764.3 hours Start 2024.04.04 @ 16:23:50 End 2024.04.04 @ 16:33:16 Sessions 1 Manual Loads 0 Difficulty Rogue Special Mode None Game No. 714 Rogue 714 Adventurer 0 Explorer 0 Win Type - Total 39 Types 14/4/11/2/0/0/5/2/1 Lore% 94 Gallery% 95 Achievement% 84 Wizard Run 0 Options --------- Layout 0 ASCII 0 Keyboard 0 Movement Numpad Keybinds 0 Fullscreen 1 Font 18/Smallcaps Map View 76x50 Zoom Use 0% Tactical HUD 1 Map Filters NONE Filters NONE Steam 1 RUN: ce40fa27-e337-42ba-a2f4-a7a756a9a5db